bitfinex/quotes_SOLUSD_20220128
["timestamp","ask_amount","ask_price","bid_price","bid_amount"]
[1643336610645,0.2,90.112,89.99,13.36]
[1643336611042,0.2,90.112,90.0,6.0]
[1643336611243,0.2,90.112,90.01,13.36]
[1643336611447,16.669,90.1,90.011,8.21062021]
[1643336611743,0.45,90.099,90.021,6.0]
[1643336612342,0.25,90.099,90.022,2.24494838]
[1643336612746,0.2,90.111,90.023,1.99494838]
[1643336612944,0.2,90.111,90.033,29.74201109]
[1643336613146,0.2,90.111,90.033,35.74201109]
[1643336613368,0.2,90.111,90.034,2.24494838]
[1643336614872,16.668,90.11,90.034,1.99494838]
[1643336615068,16.668,90.11,89.955,16.783]
[1643336615069,6.0,90.1,90.0,15.35494838]
[1643336615269,0.25,90.099,90.001,0.25]
[1643336615469,6.25,90.099,90.01,6.0]
[1643336615671,111.65,90.099,90.01,6.0]
[1643336615874,0.2,90.098,90.01,6.0]
[1643336616072,44.557617,90.098,90.011,32.24465234]
[1643336616375,16.6708,90.09,90.011,32.24465234]
[1643336616573,0.2,90.089,90.021,6.0]
[1643336616778,0.45,90.089,90.021,6.0]
[1643336617376,0.45,90.089,90.022,0.25]
[1643336617576,0.45,90.089,90.022,2.24494838]
[1643336617776,0.45,90.097,90.022,1.99494838]
[1643336617978,0.45,90.097,90.021,6.0]
[1643336618376,1.52229607,90.094,90.021,6.0]
[1643336618579,16.6717,90.09,90.021,6.0]
[1643336618780,0.45,90.089,90.021,6.0]
[1643336619179,0.45,90.089,90.022,0.25]
[1643336619382,1.52229607,90.086,90.022,0.25]
[1643336619579,1.97229607,90.089,90.022,0.25]
[1643336619779,1.52229607,90.088,90.022,0.25]
[1643336620178,0.25,90.087,90.023,1.99494838]
[1643336620378,0.25,90.087,90.024,0.25]
[1643336620581,0.25,90.087,90.034,5.70797896]
[1643336620782,1.52229607,90.079,90.035,0.25]
[1643336620979,1.52229607,90.078,90.035,0.25]
[1643336621178,1.77229607,90.078,90.035,0.25]
[1643336622182,1.77229607,90.078,90.025,1.99494838]
[1643336622379,1.77229607,90.078,90.002,1.99494838]
[1643336622580,1.52229607,90.068,90.011,0.25]
[1643336622781,1.77229607,90.067,90.011,0.25]
[1643336623383,0.25,90.067,90.012,1.99494838]
[1643336623780,1.52229607,90.067,90.012,1.99494838]
[1643336623981,1.52229607,90.058,89.98,1.99494838]
[1643336624181,1.52229607,90.047,89.98,1.99494838]
[1643336624382,0.25,90.068,89.962,1.99494838]
[1643336624383,1.52229607,90.039,89.962,1.99494838]
[1643336624582,1.52229607,90.037,89.962,1.99494838]
[1643336624781,42.3517497,90.036,89.963,35.39019761]
[1643336624983,0.2,90.035,89.963,35.39019761]
[1643336625180,0.2,90.035,89.964,2.24494838]
[1643336625783,0.2,90.035,89.965,1.99494838]
[1643336626182,0.25,90.036,89.966,0.25]
[1643336626385,0.25,90.044,89.966,0.25]
[1643336626682,0.25,90.044,89.967,1.99494838]
[1643336626882,1.52229607,90.049,89.968,0.25]
[1643336627082,0.2,90.054,89.978,2.56243369]
[1643336627382,1.72229607,90.054,89.979,0.25]
[1643336627581,1.72229607,90.054,89.979,2.24494838]
[1643336627782,1.72229607,90.054,89.98,1.99494838]
[1643336628087,1.52229607,90.038,89.959,1.99494838]
[1643336628284,0.25,90.037,89.959,1.99494838]
[1643336628481,7.52229607,90.028,89.93,13.36]
[1643336628685,111.2,90.027,89.93,13.36]
[1643336628883,1.72229607,90.026,89.94,6.0]
[1643336629084,111.2,90.016,89.941,32.70291954]
[1643336629283,0.25,90.015,89.951,6.0]
[1643336629684,0.2,90.051,89.951,6.0]
[1643336629685,1.52229607,90.043,89.952,0.25]
[1643336629885,1.52229607,90.049,89.96,6.0]
[1643336630086,1.52229607,90.05,89.962,6.0]
[1643336630283,1.72229607,90.051,89.963,0.25]
[1643336630484,1.52229607,90.054,89.963,6.25]
[1643336630686,1.52229607,90.053,89.971,6.0]
[1643336630884,1.52229607,90.057,89.973,6.0]
[1643336631086,1.52229607,90.058,89.974,6.0]
[1643336631288,1.52229607,90.058,89.975,31.72147197]
[1643336631485,1.52229607,90.058,89.975,33.71642035]
[1643336631684,1.52229607,90.055,89.976,0.25]
[1643336631886,0.25,90.054,89.976,2.24494838]
[1643336632124,1.77229607,90.054,89.977,1.99494838]
[1643336632386,0.25,90.054,89.978,0.25]
[1643336632787,0.25,90.054,89.979,1.99494838]
[1643336633190,1.77229607,90.056,89.98,0.25]
[1643336633388,0.25,90.055,89.98,0.25]
[1643336633590,0.25,90.055,89.981,1.99494838]
[1643336633792,0.2,90.059,89.985,6.0]
[1643336633992,0.2,90.059,89.982,0.25]
[1643336633993,24.8146,90.073,89.991,6.0]
[1643336634288,3.04569457,90.096,89.992,0.25]
[1643336634490,3.04569457,90.101,90.0,6.0]
[1643336634690,3.04569457,90.117,90.011,1.88515438]
[1643336634888,35.21214521,90.116,90.012,0.25]
[1643336635087,35.21214521,90.116,90.021,6.0]
[1643336635293,3.04569457,90.124,90.03,13.36]
[1643336635494,3.07996447,90.129,90.031,111.2]
[1643336635690,3.07996447,90.159,90.04,173.06]
[1643336635891,3.07996447,90.159,90.05,13.36]
[1643336636088,4.56750984,90.184,90.05,13.36]
[1643336636089,3.07996447,90.169,90.052,111.2]
[1643336636292,38.7811999,90.168,90.061,111.2]
[1643336636492,3.07875526,90.167,90.071,6.0]
[1643336636694,3.07996447,90.165,90.071,9.45751582]
[1643336636894,3.07996447,90.165,90.08,6.0]
[1643336637093,3.07996447,90.165,90.091,12.39415358]
[1643336637293,3.07875526,90.167,90.092,0.25]
[1643336637493,3.07875526,90.167,90.101,6.0]
[1643336638394,0.25,90.166,90.101,6.0]
[1643336638595,0.25,90.166,90.11,6.0]
[1643336638797,0.25,90.167,90.111,3.45751582]
[1643336638995,0.25,90.167,90.121,6.0]
[1643336639195,0.25,90.167,90.1,13.36]
[1643336639396,0.25,90.167,90.08,13.36]
[1643336639618,6.0,90.158,90.0,167.06]
[1643336639796,0.25,90.157,90.01,13.36]
[1643336639998,6.0,90.149,90.01,13.36]
[1643336640296,111.2,90.147,90.011,11.14962752]
[1643336640495,6.0,90.137,90.021,6.0]
[1643336640695,111.2,90.136,90.031,4.70204188]
[1643336640896,111.45,90.136,90.031,4.70204188]
[1643336641096,40.69717951,90.125,90.031,4.70204188]
[1643336641301,0.25,90.124,90.031,4.70204188]
[1643336641497,0.25,90.124,90.032,0.25]
[1643336642498,111.45,90.124,90.0,13.36]
[1643336642698,111.45,90.124,89.953,3.07254657]
[1643336642699,0.30531249,90.108,89.911,3.07254657]
[1643336642902,5.80524946,90.0,89.887,74.0035]
[1643336643098,5.80524946,90.0,89.89,13.36]
[1643336643298,0.25,89.999,89.89,13.36]
[1643336643498,0.25,89.999,89.891,14.16053975]
[1643336643903,111.2,90.047,89.892,111.2]
[1643336644098,22.7741,90.048,89.892,126.89028058]
[1643336644297,22.7741,90.048,89.892,134.12980844]
[1643336644498,22.7741,90.048,89.894,111.2]
[1643336644698,22.7741,90.048,89.894,120.41182863]
[1643336644898,22.7741,90.048,89.896,111.2]
[1643336645098,22.7741,90.048,89.92,16.677]
[1643336645299,0.25,90.047,89.931,111.2]
[1643336645498,0.25,90.047,89.941,6.0]
[1643336645701,0.25,90.047,89.942,7.8409291]
[1643336645907,0.25,90.047,89.942,8.0909291]
[1643336646098,0.25,90.047,89.952,6.0]
[1643336646301,0.25,90.047,89.953,0.25]
[1643336646500,0.25,90.047,89.953,6.25]
[1643336646901,0.25,90.047,89.953,6.0]
[1643336648801,0.25,90.047,89.954,0.25]
[1643336649004,0.45,90.047,89.954,0.25]
[1643336649902,0.45,90.047,89.953,6.0]
[1643336650103,0.45,90.047,89.954,0.25]
[1643336650503,0.45,90.047,89.953,6.0]
[1643336650706,45.04530911,90.037,89.953,6.0]
[1643336650904,0.2,90.036,89.952,6.0]
[1643336651104,6.0,90.027,89.943,111.45]
[1643336651303,0.25,90.026,89.943,111.45]
[1643336651507,0.25,90.026,89.943,0.25]
[1643336652506,0.45,90.036,89.952,6.0]
[1643336652908,0.45,90.036,89.953,0.25]
[1643336653713,0.45,90.036,89.952,6.0]
[1643336654119,0.45,90.036,89.942,7.8409291]
[1643336654318,16.688,90.01,89.943,0.25]
[1643336654518,35.42502373,90.009,89.943,0.25]
[1643336654731,0.2,90.008,89.943,0.25]
[1643336656330,16.6881,90.0,89.943,0.25]
[1643336656533,0.2,89.999,89.943,0.25]
[1643336656734,0.45,89.999,89.943,0.25]
[1643336657534,0.2,89.999,89.943,0.25]
[1643336657734,0.2,90.029,89.943,0.25]
[1643336657935,0.25,90.026,89.943,0.25]
[1643336659136,0.45,90.028,89.943,0.25]
[1643336660938,16.684,90.02,89.943,0.25]
[1643336661141,6.2,90.019,89.943,0.25]
[1643336661341,6.0,90.01,89.943,0.25]
[1643336661642,46.17627925,90.009,89.943,0.25]
[1643336661843,0.2,90.008,89.943,0.25]
[1643336662941,0.2,90.008,89.921,0.25]
[1643336663242,0.2,90.008,89.92,6.0]
[1643336663640,0.2,90.008,89.921,0.25]
[1643336663844,111.4,90.008,89.921,9.5371511]
[1643336664043,0.2,90.007,89.921,9.5371511]
[1643336664344,0.2,90.008,89.921,9.5371511]
[1643336665942,16.6877,90.0,89.921,9.5371511]
[1643336666140,111.4,89.999,89.921,9.5371511]
[1643336666340,0.2,89.998,89.921,9.5371511]
[1643336666543,6.0,89.99,89.921,9.5371511]
[1643336666946,6.25,89.989,89.921,9.5371511]
[1643336667143,0.45,89.989,89.921,9.5371511]
[1643336667342,0.25,89.989,89.931,6.0]
[1643336667545,0.2,89.999,89.931,6.0]
[1643336667744,0.2,90.019,89.94,13.36]
[1643336668045,0.2,90.027,89.95,6.0]
[1643336668344,0.2,90.078,89.961,111.2]
[1643336668545,35.60221258,90.09,89.971,6.0]
[1643336668744,0.2,90.089,89.98,124.56]
[1643336669046,0.45,90.089,89.99,6.0]
[1643336669244,0.2,90.089,89.991,0.25]
[1643336669548,0.2,90.089,89.991,6.25]
[1643336669744,0.2,90.089,90.0,6.0]
[1643336669945,0.2,90.089,90.001,111.2]
[1643336670250,0.2,90.089,90.003,111.2]
[1643336670449,3.07996447,90.102,90.003,111.2]
[1643336670645,0.25,90.099,90.013,6.0]
[1643336670847,3.08435738,90.098,90.014,111.45]
[1643336671046,0.25,90.102,90.014,117.45]
[1643336671447,0.2,90.103,90.02,117.2]
[1643336671650,0.2,90.107,90.02,130.56]
[1643336671845,3.07996447,90.125,90.024,6.0]
[1643336672049,3.07996447,90.132,90.025,6.0]
[1643336672248,3.07996447,90.137,90.03,19.36]
[1643336672447,3.07996447,90.142,90.031,6.92505002]
[1643336672649,3.07996447,90.144,90.031,7.17505002]
[1643336672849,3.07996447,90.144,90.041,6.0]
[1643336673246,3.27975252,90.146,90.042,0.25]
[1643336673449,3.07975252,90.143,90.05,6.0]
[1643336673648,6.0,90.136,90.051,2.87136992]
[1643336673948,0.25,90.135,90.051,3.12136992]
[1643336674147,0.25,90.135,90.061,6.0]
[1643336674347,0.45,90.146,90.062,0.25]
[1643336675551,0.2,90.146,90.062,0.25]
[1643336675751,0.2,90.149,90.062,0.25]
[1643336676550,38.70319154,90.149,90.062,0.25]
[1643336676750,0.2,90.148,90.062,0.25]
[1643336676949,0.2,90.149,90.062,0.25]
[1643336677750,38.87671722,90.149,90.062,0.25]
[1643336677950,0.2,90.148,90.062,0.25]
[1643336678152,0.45,90.148,90.062,0.25]
[1643336679755,0.45,90.149,90.062,0.25]
[1643336679953,0.25,90.149,90.07,13.36]
[1643336680153,6.0,90.16,90.07,13.36]
[1643336680354,0.25,90.159,90.08,6.0]
[1643336680554,0.25,90.159,90.081,6.92505002]
[1643336680753,0.25,90.159,90.081,7.17505002]
[1643336680953,0.25,90.159,90.091,6.0]
[1643336681154,0.2,90.169,90.091,6.0]
[1643336681357,0.2,90.177,90.092,0.25]
[1643336681655,0.2,90.197,90.1,6.0]
[1643336681854,0.2,90.197,90.11,13.36]
[1643336682057,0.2,90.197,90.12,6.0]
[1643336682258,0.2,90.197,90.121,0.25]
[1643336682455,0.2,90.217,90.121,8.24494838]
[1643336682653,0.2,90.229,90.121,8.24494838]
[1643336682854,0.2,90.229,90.13,6.0]
[1643336683054,0.2,90.248,90.132,6.0]
[1643336683254,3.04867015,90.247,90.133,0.25]
[1643336683455,16.6426,90.24,90.133,7.17505002]
[1643336683656,6.0,90.237,90.133,7.17505002]
[1643336683854,6.0,90.237,90.143,6.0]
[1643336684255,2.95669142,90.236,90.143,6.0]
[1643336684457,6.0,90.237,90.143,6.0]
[1643336684657,0.25,90.235,90.143,6.0]
[1643336684860,0.25,90.236,90.143,6.0]
[1643336685057,47.4490028,90.229,90.143,6.0]
[1643336685257,0.45,90.228,90.143,6.0]
[1643336685757,0.45,90.228,90.144,0.25]
[1643336686157,0.45,90.228,90.144,2.24455514]
[1643336686457,0.45,90.228,90.151,2.87136992]
[1643336686659,0.45,90.228,90.154,6.0]
[1643336686858,0.45,90.228,90.151,2.87136992]
[1643336687461,16.6484,90.21,90.151,2.87136992]
[1643336687663,49.2016098,90.209,90.151,2.87136992]
[1643336687861,0.2,90.208,90.151,2.87136992]
[1643336688061,0.45,90.208,90.151,2.87136992]
[1643336688460,0.45,90.208,90.12,13.36]
[1643336688660,0.45,90.208,90.11,13.36]
[1643336688860,6.0,90.199,90.09,13.36]
[1643336689263,0.25,90.198,90.091,1.99807923]
[1643336689662,16.6534,90.18,90.092,9.68817321]
[1643336689860,40.91707022,90.179,90.092,9.68817321]
[1643336690062,0.2,90.178,90.092,9.68817321]
[1643336691461,16.6579,90.16,90.092,9.68817321]
[1643336691663,0.2,90.159,90.092,9.68817321]
[1643336691864,0.45,90.159,90.092,9.68817321]
[1643336692668,0.45,90.159,90.093,1.99807923]
[1643336693665,0.45,90.159,90.092,9.68817321]
[1643336693867,0.2,90.159,90.092,9.68817321]
[1643336694066,0.2,90.159,90.093,1.99807923]
[1643336694269,0.2,90.189,90.093,1.99807923]
[1643336694771,0.2,90.189,90.094,0.25]
[1643336694971,0.2,90.189,90.103,6.0]
[1643336695177,42.12510984,90.189,90.103,6.0]
[1643336695470,42.12510984,90.189,90.104,2.24807923]
[1643336695471,42.37510984,90.189,90.104,2.24807923]
[1643336695672,0.2,90.188,90.105,6.0]
[1643336695894,0.2,90.188,90.105,1.99807923]
[1643336696097,111.4,90.188,90.105,1.99807923]
[1643336696294,0.45,90.187,90.105,1.99807923]
[1643336696496,0.25,90.187,90.105,1.99807923]
[1643336696697,0.25,90.187,90.092,9.68817321]
[1643336696995,0.25,90.187,90.102,6.0]
[1643336697396,0.25,90.187,90.103,6.25]
[1643336697595,0.45,90.188,90.103,8.24807923]
[1643336697899,3.06877565,90.187,90.104,1.99807923]
[1643336698096,0.45,90.188,90.104,2.24807923]
[1643336698496,0.45,90.188,90.105,1.99807923]
[1643336698696,2.56876723,90.187,90.105,1.99807923]
[1643336698896,0.25,90.186,90.105,1.99807923]
[1643336699298,16.6549,90.18,90.105,1.99807923]
[1643336699497,0.2,90.179,90.103,6.0]
[1643336699700,0.45,90.179,90.103,6.0]
[1643336699899,111.2,90.168,90.092,9.68817321]
[1643336700099,0.2,90.167,90.092,9.68817321]
[1643336700401,0.45,90.167,90.092,9.68817321]
[1643336700598,0.25,90.167,90.092,9.68817321]
[1643336701403,0.45,90.168,90.093,0.25]
[1643336701901,0.45,90.168,90.094,1.99807923]
[1643336702102,0.25,90.168,90.094,1.99807923]
[1643336702401,0.45,90.169,90.1,13.36]
[1643336702601,0.25,90.169,90.11,6.0]
[1643336702801,3.07996447,90.186,90.11,6.0]
[1643336703003,42.68761044,90.185,90.111,6.0]
[1643336703202,0.2,90.184,90.111,6.0]
[1643336703402,0.45,90.184,90.111,6.0]
[1643336703602,0.45,90.184,90.112,1.99807923]
[1643336703803,0.25,90.184,90.11,6.0]
[1643336704703,48.34518668,90.184,90.11,6.0]
[1643336704901,0.2,90.183,90.11,6.0]
[1643336705303,16.6544,90.18,90.11,6.0]
[1643336705504,0.2,90.179,90.1,13.36]
[1643336705704,0.45,90.179,90.1,13.36]
[1643336705904,0.45,90.179,90.11,6.0]
[1643336706504,0.2,90.179,90.11,6.0]
[1643336707303,0.2,90.179,90.111,0.25]
[1643336707506,3.07996447,90.184,90.111,2.24807923]
[1643336707707,55.4974,90.23,90.112,1.99807923]
[1643336707708,0.25,90.18,90.112,1.99807923]
[1643336707906,42.81216567,90.209,90.121,6.0]
[1643336707907,0.25,90.188,90.121,6.0]
[1643336708110,0.25,90.194,90.122,6.0]
[1643336708307,3.07996447,90.196,90.122,6.0]
[1643336708308,0.25,90.195,90.122,6.0]
[1643336708509,3.07996447,90.194,90.122,7.99807923]
[1643336708712,3.32996447,90.195,90.123,1.99807923]
[1643336708912,0.25,90.193,90.123,1.99807923]
[1643336709108,3.07996447,90.192,90.133,6.0]
[1643336709308,0.25,90.191,90.133,6.0]
[1643336709910,0.25,90.191,90.112,1.99807923]
[1643336710113,0.25,90.191,90.122,6.0]
[1643336710914,0.25,90.192,90.13,16.0]
[1643336711113,3.07996447,90.196,90.13,16.0]
[1643336711413,3.07996447,90.201,90.14,6.0]
[1643336711614,3.07996447,90.208,90.15,16.0]
[1643336711815,3.07996447,90.216,90.151,111.45]
[1643336712016,3.07996447,90.23,90.161,6.0]
[1643336712313,3.07996447,90.239,90.162,0.25]
[1643336712513,3.07996447,90.239,90.17,6.0]
[1643336712714,3.07996447,90.241,90.17,6.0]
[1643336712920,3.07996447,90.241,90.172,6.0]
[1643336713220,3.07996447,90.241,90.181,6.0]
[1643336713414,3.07996447,90.249,90.181,6.0]
[1643336713616,3.07996447,90.256,90.19,6.0]
[1643336713815,3.07996447,90.259,90.2,16.0]
[1643336714116,3.07996447,90.265,90.21,6.0]
[1643336714316,3.07996447,90.266,90.21,6.0]
[1643336714615,3.07996447,90.266,90.21,5.0]
[1643336714914,0.25,90.265,90.21,1.99352446]
[1643336715314,3.07996447,90.276,90.21,1.99352446]
[1643336715720,6.0,90.266,90.211,0.25]
[1643336715917,0.25,90.265,90.21,1.99352446]
[1643336716117,0.25,90.265,90.19,16.0]
[1643336716321,6.0,90.257,90.19,16.0]
[1643336716719,0.25,90.256,90.19,16.0]
[1643336716919,0.25,90.256,90.191,0.25]
[1643336717120,0.25,90.256,90.19,16.0]
[1643336717919,6.0,90.257,90.19,16.0]
[1643336718323,0.25,90.256,90.19,16.0]
[1643336719519,6.0,90.257,90.191,0.25]
[1643336719821,0.25,90.256,90.17,16.0]
[1643336720121,46.58365766,90.246,90.12,16.0]
[1643336720320,0.45,90.245,90.12,16.0]
[1643336720519,6.0,90.236,90.12,16.0]
[1643336720926,0.25,90.235,90.12,16.0]
[1643336721121,6.0,90.234,90.121,0.25]
[1643336721320,16.6472,90.22,90.13,6.0]
[1643336721521,0.2,90.219,90.14,16.0]
[1643336721719,0.45,90.219,90.14,16.0]
[1643336723024,0.45,90.219,90.141,0.25]
[1643336723222,0.25,90.219,90.141,2.24352446]
[1643336723423,0.25,90.233,90.142,1.99993871]
[1643336723621,0.45,90.243,90.142,1.99993871]
[1643336723822,0.45,90.243,90.143,0.25]
[1643336724023,35.29111546,90.243,90.152,6.0]
[1643336724221,0.2,90.242,90.152,6.0]
[1643336724421,0.2,90.242,90.153,0.25]
[1643336724620,0.2,90.242,90.153,6.0]
[1643336724820,6.0,90.233,90.14,13.33]
[1643336725020,16.6462,90.22,90.13,13.33]
[1643336725220,42.18319682,90.219,90.13,13.33]
[1643336725421,0.2,90.218,90.13,13.33]
[1643336725626,0.45,90.218,90.13,13.33]
[1643336727024,111.65,90.218,90.13,13.33]
[1643336727224,0.2,90.217,90.13,13.33]
[1643336727826,0.2,90.217,90.131,1.99993871]
[1643336728726,0.45,90.218,90.131,1.99993871]
[1643336729226,111.65,90.218,90.131,1.99993871]
[1643336729426,0.2,90.217,90.131,1.99993871]
[1643336729929,0.2,90.217,90.132,0.25]
[1643336730327,16.6498,90.2,90.132,0.25]
[1643336730527,39.87698201,90.199,90.132,0.25]
[1643336730828,0.2,90.198,90.132,0.25]
[1643336731426,0.2,90.198,90.115,1.99993871]
[1643336731629,6.0,90.189,90.115,1.99993871]
[1643336731830,111.45,90.188,90.08,13.33]
[1643336732032,6.0,90.178,90.08,13.33]
[1643336732232,36.28891567,90.177,90.08,13.33]
[1643336732431,0.2,90.176,90.102,6.0]
[1643336732831,0.2,90.197,90.103,0.25]
[1643336733031,0.2,90.197,90.103,6.25]
[1643336733633,42.82857063,90.197,90.103,6.25]
[1643336733831,0.2,90.196,90.103,6.25]
[1643336734231,0.2,90.196,90.103,0.25]
[1643336734433,0.2,90.196,90.113,6.0]
[1643336734637,0.2,90.196,90.11,6.0]
[1643336734834,0.2,90.196,90.111,0.25]
[1643336735235,0.2,90.196,90.11,6.0]
[1643336735435,0.2,90.196,90.111,0.25]
[1643336735635,6.0,90.206,90.111,129.68026892]
[1643336736034,0.2,90.215,90.121,6.0]
[1643336736435,49.06704019,90.215,90.122,6.25]
[1643336736635,0.2,90.214,90.132,6.0]
[1643336737036,0.2,90.214,90.133,0.25]
[1643336737253,0.2,90.214,90.13,6.0]
[1643336737455,16.6492,90.21,90.13,6.0]
[1643336737654,0.2,90.209,90.13,6.0]
[1643336738254,0.45,90.209,90.13,6.0]
[1643336738957,0.45,90.209,90.131,0.25]
[1643336739156,0.25,90.209,90.131,0.25]
[1643336739355,0.45,90.214,90.131,0.25]
[1643336740557,6.0,90.205,90.131,0.25]
[1643336740757,0.25,90.204,90.121,0.25]
[1643336740964,0.25,90.204,90.12,13.33]
[1643336741358,111.2,90.203,90.12,13.33]
[1643336741561,0.2,90.202,90.12,13.33]
[1643336741761,0.45,90.202,90.12,13.33]
[1643336742460,16.6507,90.2,90.12,13.33]
[1643336742658,47.78591532,90.199,90.12,13.33]
[1643336742858,0.2,90.198,90.1,13.33]
[1643336743264,0.2,90.198,90.101,0.25]
[1643336744466,43.56909057,90.179,90.101,0.25]
[1643336744667,0.2,90.178,90.11,6.0]
[1643336744867,0.45,90.178,90.11,13.33]
[1643336745873,6.0,90.169,90.09,13.33]
[1643336746069,6.2,90.169,90.09,13.33]
[1643336746271,0.25,90.168,90.09,13.33]
[1643336746779,0.25,90.168,90.056,17.20488904]
[1643336746981,22.6583,90.16,90.06,13.33]
[1643336747194,0.2,90.159,90.066,6.0]
[1643336747378,6.0,90.15,90.07,6.0]
[1643336747778,47.50800259,90.149,90.071,7.87354363]
[1643336747975,16.6629,90.14,90.071,7.87354363]
[1643336748176,0.2,90.139,90.071,9.87718758]
[1643336748377,0.45,90.139,90.072,0.25]
[1643336748776,0.2,90.139,90.072,0.25]
[1643336748976,0.2,90.139,90.071,9.87718758]
[1643336749177,0.2,90.148,90.071,9.87718758]
[1643336749580,0.2,90.148,90.081,6.0]
[1643336749779,0.2,90.148,90.071,7.87354363]
[1643336749979,0.45,90.148,90.071,7.87354363]
[1643336750379,0.45,90.148,90.072,0.25]
[1643336751379,0.45,90.148,90.071,7.87354363]
[1643336752181,0.45,90.148,90.072,0.25]
[1643336752381,0.45,90.148,90.071,7.87354363]
[1643336754286,0.45,90.148,90.072,0.25]
[1643336754684,1.5398503,90.142,90.072,0.25]
[1643336754884,0.25,90.141,90.072,0.25]
[1643336755086,0.25,90.141,90.081,6.0]
[1643336755908,0.45,90.148,90.081,6.0]
[1643336756088,0.45,90.148,90.071,7.87354363]
[1643336756287,1.5398503,90.147,90.071,7.87354363]
[1643336756688,0.25,90.146,90.071,7.87354363]
[1643336757890,0.25,90.147,90.071,7.87354363]
[1643336760293,1.7898503,90.147,90.071,7.87354363]
[1643336760493,1.5398503,90.147,90.071,7.87354363]
[1643336760701,1.5398503,90.15,90.081,6.0]
[1643336760895,1.5398503,90.169,90.09,13.33]
[1643336761094,1.5398503,90.171,90.101,111.2]
[1643336761294,1.5398503,90.177,90.11,13.33]
[1643336761496,5.03e-05,90.187,90.12,172.59]
[1643336761702,3.07996447,90.217,90.14,166.59]
[1643336761896,3.07996447,90.221,90.15,13.33]
[1643336762099,3.07996447,90.221,90.16,19.33]
[1643336762299,3.07996447,90.222,90.17,13.33]
[1643336762499,0.2,90.235,90.18,6.0]
[1643336762701,0.2,90.235,90.19,13.33]
[1643336762902,3.07996447,90.262,90.19,13.33]
[1643336763099,42.96685637,90.259,90.191,1.92287631]
[1643336763301,0.2,90.258,90.191,1.92287631]
[1643336763524,0.2,90.258,90.192,0.25]
[1643336763726,0.2,90.258,90.191,1.92287631]
[1643336764729,0.2,90.258,90.093,3.07254657]
[1643336764730,55.4825,90.25,90.093,3.07254657]
[1643336764925,55.4825,90.25,90.047,3.07254657]
[1643336764926,3.07996447,90.23,90.047,3.07254657]
[1643336765125,3.07996447,90.203,90.039,17.0536]
[1643336765325,3.07996447,90.188,90.04,13.33]
[1643336765526,6.0,90.178,90.04,13.33]
[1643336765825,0.25,90.177,90.042,111.2]
[1643336766025,6.0,90.175,90.042,111.2]
[1643336766225,6.0,90.175,90.042,23.5227]
[1643336766527,38.96725217,90.139,90.043,0.25]
[1643336766726,0.2,90.138,90.043,0.25]